bitfinex/quotes_BTCUSD_20240620
["timestamp","ask_amount","ask_price","bid_price","bid_amount"]
[1718902912810,0.06902381,64953.0,64949.0,0.09269582]
[1718902912988,0.06902381,64953.0,64949.0,0.09569582]
[1718902913193,0.06902381,64953.0,64949.0,0.09769582]
[1718902913406,0.06902381,64952.0,64949.0,0.09769582]
[1718902913597,0.06902381,64952.0,64949.0,0.09269582]
[1718902913988,0.06902381,64952.0,64949.0,0.09469582]
[1718902914196,0.06902381,64952.0,64949.0,0.09369582]
[1718902914414,0.06902381,64952.0,64949.0,0.09269582]
[1718902914616,0.06902381,64952.0,64949.0,0.00037582]
[1718902914817,0.06902381,64951.0,64949.0,0.00037582]
[1718902915830,0.06903282,64951.0,64949.0,0.00037582]
[1718902916212,0.06903282,64951.0,64949.0,0.00137582]
[1718902916415,0.06903282,64951.0,64949.0,0.00037582]
[1718902916937,0.07803282,64951.0,64949.0,0.00037582]
[1718902917872,0.06903282,64950.0,64949.0,0.00037582]
[1718902918053,0.0649,64950.0,64949.0,0.00037582]
[1718902918246,0.4518547,64950.0,64949.0,0.00037582]
[1718902918450,0.48936112,64950.0,64949.0,0.00037582]
[1718902918652,0.48936112,64950.0,64949.0,0.00031671]
[1718902918864,0.62774934,64950.0,64949.0,0.00031671]
[1718902919413,0.63074934,64950.0,64949.0,0.00031671]
[1718902919611,0.63374934,64950.0,64949.0,0.00031671]
[1718902920021,0.58801112,64950.0,64949.0,0.00031671]
[1718902920148,0.25121112,64950.0,64949.0,0.00031671]
[1718902920651,0.25121112,64950.0,64949.0,0.10031671]
[1718902920857,0.25121112,64950.0,64949.0,0.1]
[1718902920858,0.3812356,64950.0,64949.0,0.1]
[1718902921054,0.6344939,64950.0,64949.0,0.01899205]
[1718902922047,0.6314939,64950.0,64949.0,0.01993805]
[1718902922328,0.6414939,64950.0,64949.0,0.02093805]
[1718902922503,0.6384939,64950.0,64949.0,0.02093805]
[1718902922725,0.68306089,64950.0,64949.0,0.02193805]
[1718902922897,0.68306089,64950.0,64949.0,0.00199131]
[1718902923466,0.83843225,64950.0,64949.0,0.00199131]
[1718902923867,0.98596526,64950.0,64949.0,0.00199131]
[1718902924168,0.00702448,64942.0,64930.0,0.29583301]
[1718902924372,0.06906791,64934.0,64930.0,0.29583301]
[1718902924577,0.06906791,64934.0,64933.0,0.18443301]
[1718902924774,0.09209055,64936.0,64935.0,0.18443301]
[1718902924775,0.06906791,64936.0,64935.0,0.18443301]
[1718902924972,0.13813583,64946.0,64933.0,0.1065]
[1718902924973,0.06906791,64937.0,64936.0,0.31663301]
[1718902925194,0.06906791,64938.0,64937.0,0.27740853]
[1718902925561,0.06906791,64939.0,64938.0,0.16443301]
[1718902925737,0.06906791,64939.0,64937.0,0.36560853]
[1718902925934,0.09209055,64940.0,64938.0,0.16443301]
[1718902926850,0.11281092,64940.0,64938.0,0.16443301]
[1718902927468,0.11381092,64940.0,64938.0,0.16443301]
[1718902927883,0.11381981,64940.0,64938.0,0.16443301]
[1718902928292,0.06907458,64939.0,64938.0,0.16443301]
[1718902928502,0.06907458,64939.0,64938.0,0.18443301]
[1718902928704,0.001,64940.0,64939.0,0.18443301]
[1718902929138,0.06907458,64944.0,64943.0,0.09297552]
[1718902929286,0.4788,64949.0,64946.0,0.27740853]
[1718902929287,0.06907458,64947.0,64946.0,0.27740853]
[1718902929495,0.06907458,64951.0,64950.0,0.28653301]
[1718902929694,0.06907458,64952.0,64951.0,0.18443301]
[1718902929898,0.06907458,64954.0,64952.0,0.18443301]
[1718902930212,0.57089944,64955.0,64950.0,0.1021]
[1718902930213,0.54787458,64955.0,64954.0,0.28913301]
[1718902930435,0.54787458,64955.0,64954.0,0.30913301]
[1718902930662,0.4788,64955.0,64954.0,0.30913301]
[1718902930854,0.0690496,64956.0,64954.0,0.30913301]
[1718902931010,0.0690496,64956.0,64955.0,0.18443301]
[1718902931387,0.0690496,64956.0,64954.0,0.1247]
[1718902931388,0.0690496,64957.0,64954.0,0.28913301]
[1718902931592,0.0690496,64956.0,64954.0,0.1247]
[1718902931961,0.01935277,64960.0,64954.0,0.1247]
[1718902932165,0.03747809,64960.0,64954.0,0.1247]
[1718902932466,0.005,64955.0,64954.0,0.1247]
[1718902932907,0.1,64963.0,64949.0,0.10232]
[1718902932908,0.27575,64959.0,64949.0,0.09232]
[1718902933110,0.24136112,64958.0,64949.0,0.09232]
[1718902933457,0.24136112,64958.0,64946.0,0.2223]
[1718902933458,0.24136112,64958.0,64948.0,0.09232]
[1718902933665,0.005,64955.0,64949.0,0.09232]
[1718902934226,0.005,64955.0,64944.0,0.09297552]
[1718902934227,0.15256112,64954.0,64944.0,0.09232]
[1718902934431,0.15256112,64954.0,64940.0,0.27675301]
[1718902934432,0.1831,64949.0,64940.0,0.27675301]
[1718902934642,0.33566112,64949.0,64942.0,0.09232]
[1718902934888,0.4788,64957.0,64943.0,0.09297552]
[1718902934889,0.13811655,64956.0,64943.0,0.09297552]
[1718902935059,0.13811655,64956.0,64944.0,0.16443301]
[1718902935060,0.2831,64955.0,64944.0,0.16443301]
[1718902935234,0.02399878,64955.0,64944.0,0.16443301]
[1718902935436,0.16072448,64953.0,64944.0,0.001]
[1718902935679,0.24521112,64952.0,64944.0,0.001]
[1718902935860,0.27566882,64950.0,64944.0,0.001]
[1718902936063,0.1831,64945.0,64944.0,0.001]
[1718902937085,0.23074183,64950.0,64944.0,0.001]
[1718902937290,0.33566112,64949.0,64944.0,0.001]
[1718902937546,0.33566112,64949.0,64938.0,0.09232]
[1718902937668,0.33566112,64949.0,64939.0,0.09232]
[1718902937888,0.33566112,64949.0,64935.0,0.26653301]
[1718902937889,0.07271274,64948.0,64944.0,0.001]
[1718902938497,0.07271274,64948.0,64938.0,0.09232]
[1718902938869,0.47583413,64949.0,64939.0,0.09232]
[1718902939084,0.11516377,64944.0,64939.0,0.09232]
[1718902939282,0.33766112,64949.0,64939.0,0.09232]
[1718902939283,0.11516377,64943.0,64939.0,0.09232]
[1718902939493,0.11516377,64943.0,64937.0,0.09232]
[1718902939696,0.11516377,64942.0,64935.0,0.09232]
[1718902939897,0.11517918,64942.0,64936.0,0.09232]
[1718902940070,0.09214334,64940.0,64936.0,0.09232]
[1718902940404,0.09214334,64940.0,64931.0,0.19427552]
[1718902940405,0.19853723,64940.0,64939.0,0.001]
[1718902940605,0.2493,64940.0,64939.0,0.001]
[1718902940769,0.33566112,64940.0,64929.0,0.09232]
[1718902940948,0.09215771,64934.0,64929.0,0.09232]
[1718902941152,0.09215771,64933.0,64929.0,0.09232]
[1718902941385,0.15835771,64932.0,64926.0,0.09232]
[1718902941699,0.09215771,64933.0,64929.0,0.09232]
[1718902942093,0.0241552,64931.0,64929.0,0.09232]
[1718902943150,0.0241552,64931.0,64927.0,0.09232]
[1718902943356,0.11632121,64931.0,64927.0,0.09232]
[1718902943756,0.3390611,64939.0,64925.0,0.18529552]
[1718902944000,0.46838364,64939.0,64927.0,0.09232]
[1718902944212,0.02415523,64936.0,64927.0,0.09232]
[1718902944358,0.02415523,64936.0,64929.0,0.09332]
[1718902944964,0.02415523,64936.0,64929.0,0.09232]
[1718902946026,0.03015523,64936.0,64930.0,0.43290586]
[1718902946226,0.03715523,64936.0,64930.0,0.39593301]
[1718902946643,0.03715523,64936.0,64931.0,0.16443301]
[1718902946845,0.03715523,64936.0,64932.0,0.16443301]
[1718902947090,0.03015523,64936.0,64933.0,0.18443301]
[1718902947309,0.03715523,64936.0,64932.0,0.16443301]
[1718902947521,0.03715523,64936.0,64930.0,0.48825301]
[1718902947728,0.03715523,64936.0,64932.0,0.16443301]
[1718902948075,0.03115523,64936.0,64932.0,0.16443301]
[1718902948277,0.03088197,64936.0,64932.0,0.16443301]
[1718902948486,0.03688197,64936.0,64930.0,0.32482]
[1718902948697,0.02988197,64936.0,64930.0,0.32482]
[1718902948887,0.02388197,64936.0,64930.0,0.32382]
[1718902949091,0.03088197,64936.0,64930.0,0.32382]
[1718902949319,0.03688197,64936.0,64932.0,0.001]
[1718902949735,0.04388197,64936.0,64932.0,0.001]
[1718902949936,0.03688197,64936.0,64932.0,0.001]
[1718902950157,0.04388197,64936.0,64932.0,0.001]
[1718902950366,0.07971493,64936.0,64932.0,0.001]
[1718902950540,0.07271493,64936.0,64932.0,0.001]
[1718902950941,0.06671493,64936.0,64928.0,0.09232]
[1718902951100,0.11529748,64931.0,64928.0,0.09232]
[1718902951305,0.11529748,64931.0,64930.0,0.001]
[1718902951758,0.11529748,64931.0,64928.0,0.09232]
[1718902951973,0.03788197,64936.0,64928.0,0.09232]
[1718902952156,0.09224145,64929.0,64928.0,0.09332]
[1718902952354,0.11272172,64929.0,64928.0,0.09332]
[1718902952957,0.09196739,64929.0,64928.0,0.09332]
[1718902953154,0.09196739,64929.0,64928.0,0.09232]
[1718902954462,0.11530181,64930.0,64928.0,0.09232]
[1718902955079,0.11530181,64930.0,64928.0,0.093266]
[1718902955403,0.11532093,64930.0,64928.0,0.095266]
[1718902955603,0.11532093,64930.0,64928.0,0.002946]
[1718902955812,0.11532093,64930.0,64928.0,0.001946]
[1718902956020,0.11532093,64930.0,64928.0,0.002946]
[1718902956225,0.11532093,64930.0,64928.0,0.004946]
[1718902956430,0.01153209,64929.0,64928.0,0.004946]
[1718902956630,0.41188512,64931.0,64928.0,0.004946]
[1718902957077,0.13838512,64930.0,64928.0,0.004946]
[1718902958308,0.13839014,64930.0,64928.0,0.002946]
[1718902958597,0.005,64929.0,64928.0,0.002946]
[1718902958737,0.29595126,64929.0,64928.0,0.002946]
[1718902958938,0.22376112,64929.0,64928.0,0.002946]
[1718902959138,0.21876112,64929.0,64928.0,0.002946]
[1718902959476,0.21876112,64929.0,64928.0,0.001946]
[1718902959863,0.29059829,64929.0,64928.0,0.000946]
[1718902960277,0.22876112,64929.0,64928.0,0.000946]
[1718902960472,0.41186112,64929.0,64928.0,0.000946]
[1718902961356,0.50451112,64929.0,64928.0,0.000946]
[1718902962402,0.50423786,64929.0,64928.0,0.000946]
[1718902962697,0.50423786,64929.0,64923.0,0.000946]
[1718902962857,0.13834201,64927.0,64923.0,0.000946]
[1718902963058,0.29090313,64927.0,64923.0,0.000946]
[1718902963263,0.24521112,64926.0,64923.0,0.000946]
[1718902963463,0.1831,64924.0,64923.0,0.000946]
[1718902963702,0.33566112,64924.0,64923.0,0.000946]
[1718902963834,0.15256112,64924.0,64923.0,0.000946]
[1718902964221,0.33566112,64924.0,64923.0,0.000946]
[1718902964775,0.33566112,64924.0,64910.0,0.286235]
[1718902964776,0.51871112,64924.0,64910.0,0.00948199]
[1718902964982,0.11527683,64914.0,64910.0,0.00948199]
[1718902965227,0.11527886,64912.0,64910.0,0.00948199]
[1718902965428,0.11527886,64911.0,64910.0,0.00948199]
[1718902965632,0.11527886,64912.0,64910.0,0.00948199]
[1718902966042,0.11527886,64912.0,64910.0,0.01148199]
[1718902966180,0.1831,64916.0,64910.0,0.01148199]
[1718902966181,0.11527886,64913.0,64910.0,0.01148199]
[1718902966376,0.11527886,64914.0,64910.0,0.01148199]
[1718902966587,0.11527886,64914.0,64910.0,0.00948199]
[1718902966829,0.11527886,64914.0,64910.0,0.01248199]
[1718902967168,0.1831,64916.0,64910.0,0.01148199]
[1718902967169,0.11527886,64913.0,64910.0,0.01148199]
[1718902967649,0.1831,64916.0,64910.0,0.01148199]
[1718902967650,0.11527886,64914.0,64910.0,0.01148199]
[1718902968153,0.11527886,64914.0,64910.0,0.00948199]
[1718902969151,0.11627886,64914.0,64910.0,0.00948199]
[1718902969364,0.11727886,64914.0,64910.0,0.00948199]
[1718902969555,0.001,64914.0,64910.0,0.00948199]
[1718902969761,0.003,64914.0,64910.0,0.00948199]
[1718902969962,0.03013789,64913.0,64910.0,0.00948199]
[1718902970943,0.003,64914.0,64910.0,0.00948199]
[1718902971137,0.001,64914.0,64910.0,0.00948199]
[1718902971362,0.11510224,64915.0,64910.0,0.00948199]
[1718902971569,0.29820224,64916.0,64910.0,0.00948199]
[1718902971800,0.3345146,64916.0,64910.0,0.00948199]
[1718902972015,0.28277448,64911.0,64910.0,0.00948199]
[1718902972213,0.00702448,64904.0,64894.0,0.09232]
[1718902972346,0.00702448,64904.0,64892.0,0.00948199]
[1718902972347,0.09265,64904.0,64896.0,0.09232]
[1718902972556,0.11768418,64904.0,64896.0,0.09232]
[1718902972751,0.11768418,64904.0,64892.0,0.00948199]
[1718902973031,0.24521112,64903.0,64892.0,0.173915]
[1718902973338,0.10702448,64910.0,64900.0,0.1046]
[1718902973339,0.11510035,64906.0,64900.0,0.1046]
[1718902973544,0.1,64910.0,64900.0,0.1046]
[1718902973896,0.009,64904.0,64900.0,0.1046]
[1718902974107,0.1,64910.0,64900.0,0.1046]
[1718902974532,0.008,64903.0,64900.0,0.28903301]
[1718902974861,0.008,64903.0,64901.0,0.18443301]
[1718902975082,0.008,64903.0,64900.0,0.28903301]
[1718902975603,0.008,64903.0,64902.0,0.193915]
[1718902975732,0.008,64904.0,64902.0,0.193915]
[1718902975963,0.1,64910.0,64902.0,0.193915]
[1718902976162,0.1,64910.0,64903.0,0.18443301]
[1718902976163,0.05747604,64909.0,64903.0,0.18443301]
[1718902976386,0.06175,64907.0,64903.0,0.18443301]
[1718902976788,0.12896236,64916.0,64907.0,0.2481]
[1718902977049,0.061747,64912.0,64907.0,0.2481]
[1718902977248,0.08158594,64912.0,64907.0,0.2481]
[1718902977433,0.014,64909.0,64907.0,0.2481]
[1718902977658,0.08158594,64912.0,64907.0,0.2481]
[1718902977857,0.061747,64912.0,64907.0,0.2481]
[1718902978970,0.061747,64912.0,64907.0,0.41253301]
[1718902979105,0.061747,64912.0,64910.0,0.18443301]
[1718902979303,0.061747,64912.0,64911.0,0.16443301]
[1718902979304,0.011,64912.0,64911.0,0.16443301]
[1718902979760,0.023,64912.0,64910.0,0.18443301]
[1718902980321,0.035,64912.0,64907.0,0.2481]
[1718902980740,0.01330574,64911.0,64907.0,0.2481]
[1718902980945,0.01330574,64911.0,64902.0,0.10180199]
[1718902980946,0.09265,64907.0,64902.0,0.00948199]
[1718902981137,0.1831,64903.0,64902.0,0.00948199]
[1718902982376,0.18282613,64903.0,64902.0,0.00948199]
[1718902982953,0.18282613,64903.0,64902.0,0.01048199]
[1718902983172,0.09265,64907.0,64902.0,0.01048199]
[1718902983379,0.42831112,64906.0,64902.0,0.00948199]
[1718902983975,0.025,64903.0,64902.0,0.00948199]
[1718902984546,0.07033111,64903.0,64902.0,0.00948199]
[1718902984756,0.05733111,64903.0,64902.0,0.00948199]
[1718902984975,0.30254223,64903.0,64902.0,0.00948199]
[1718902985509,0.29054223,64903.0,64902.0,0.00948199]
[1718902986119,0.32610922,64903.0,64902.0,1e-08]
[1718902986315,0.39054223,64903.0,64902.0,1e-08]
[1718902986570,0.40254223,64903.0,64902.0,1e-08]
[1718902986777,0.41554223,64903.0,64902.0,1e-08]
[1718902987019,0.49904223,64903.0,64902.0,1e-08]
[1718902987648,0.5416337,64903.0,64902.0,1e-08]
[1718902987816,0.6536337,64903.0,64902.0,1e-08]
[1718902988419,0.6843137,64903.0,64902.0,1e-08]
[1718902988627,0.03556699,64894.0,64892.0,1e-08]
[1718902988858,0.63149112,64893.0,64892.0,1e-08]
[1718902989069,0.63149112,64893.0,64875.0,0.40913301]
[1718902989070,0.67408259,64893.0,64872.0,0.09232]
[1718902989209,0.67408259,64893.0,64870.0,0.1]
[1718902989210,0.1,64871.0,64870.0,0.1]
[1718902990004,0.00702448,64871.0,64863.0,0.00948199]
[1718902990202,0.1831,64864.0,64863.0,0.00948199]
[1718902990324,0.09265,64868.0,64863.0,0.00948199]
[1718902990529,0.1831,64865.0,64863.0,0.00948199]
[1718902990936,0.05283111,64864.0,64863.0,0.00948199]
[1718902991970,0.1831,64865.0,64863.0,0.00948199]
[1718902992371,0.2522356,64864.0,64863.0,0.00948199]
[1718902992584,0.2752356,64864.0,64863.0,1e-08]
[1718902992986,0.32280259,64864.0,64863.0,1e-08]
[1718902993179,0.35922586,64864.0,64863.0,1e-08]
[1718902993586,0.34722586,64864.0,64863.0,1e-08]
[1718902993781,0.25921112,64864.0,64863.0,1e-08]
[1718902993981,0.44231112,64864.0,64863.0,1e-08]
[1718902994185,0.45631112,64864.0,64863.0,1e-08]
[1718902996741,0.028,64864.0,64863.0,0.24730001]
[1718902997525,0.014,64864.0,64863.0,0.24730001]
[1718902998506,0.014,64864.0,64863.0,0.43173302]
[1718902999119,0.03625617,64865.0,64863.0,0.43173302]
[1718902999313,0.014,64864.0,64863.0,0.52470854]
[1718902999541,0.027,64864.0,64863.0,0.52470854]
[1718903000035,0.023,64864.0,64863.0,0.52470854]
[1718903000270,0.032,64864.0,64863.0,0.52470854]
[1718903000472,0.019,64864.0,64863.0,0.34027553]
[1718903000600,0.018,64864.0,64863.0,0.34027553]
[1718903001014,0.025,64864.0,64863.0,0.52470854]
[1718903002339,0.025,64864.0,64863.0,0.57812759]
[1718903002553,0.025,64864.0,64863.0,0.52470854]
[1718903002554,0.018,64864.0,64863.0,0.52470854]
[1718903002906,0.021,64864.0,64863.0,0.52470854]
[1718903003529,0.018,64864.0,64863.0,0.52470854]
[1718903003844,0.018,64864.0,64863.0,0.52770854]
[1718903003845,0.022,64864.0,64863.0,0.52770854]
[1718903004043,0.004,64864.0,64863.0,0.52770854]
[1718903004263,0.004,64864.0,64863.0,0.52970854]
[1718903004660,0.004,64864.0,64863.0,0.53970854]
[1718903005064,0.4788,64879.0,64877.0,0.18443301]
[1718903006232,0.4928,64879.0,64877.0,0.18443301]
[1718903006508,0.4928,64879.0,64878.0,0.18443301]
[1718903006509,0.04777719,64879.0,64878.0,0.18443301]
[1718903007064,0.06177719,64879.0,64878.0,0.27740853]
[1718903007434,0.04777719,64879.0,64878.0,0.27740853]
[1718903007647,0.06177719,64879.0,64878.0,0.27740853]
[1718903008066,0.03377719,64879.0,64878.0,0.27740853]
[1718903008288,0.006,64879.0,64878.0,0.27840853]
[1718903008956,0.02,64879.0,64878.0,0.27840853]
[1718903009183,0.02,64879.0,64878.0,0.52360853]
[1718903009527,0.006,64879.0,64878.0,0.53360853]
[1718903009754,0.006,64879.0,64878.0,0.59559755]
[1718903010197,0.006,64879.0,64878.0,0.74815867]
[1718903010422,0.4788,64896.0,64893.0,0.18443301]
[1718903010623,0.29238023,64902.0,64893.0,0.18443301]
[1718903010825,0.09273,64900.0,64893.0,0.18443301]
[1718903011037,0.15256112,64899.0,64891.0,0.2446]
[1718903011812,0.21453238,64899.0,64893.0,0.001]
[1718903012264,0.15256112,64899.0,64893.0,0.001]
[1718903013437,0.09273,64900.0,64893.0,0.001]
[1718903013646,0.09273,64900.0,64893.0,0.18543301]
[1718903013647,0.24529112,64900.0,64893.0,0.18543301]
[1718903013844,0.014,64899.0,64893.0,0.18443301]
[1718903014085,0.028,64899.0,64893.0,0.18443301]
[1718903014294,0.028,64899.0,64898.0,0.16443301]
[1718903014499,0.03488745,64902.0,64899.0,0.18443301]
[1718903014668,0.03488745,64902.0,64895.0,0.09297552]
[1718903014669,0.03488745,64902.0,64898.0,0.18443301]
[1718903014911,0.014,64900.0,64898.0,0.18443301]
[1718903015526,0.014,64900.0,64897.0,0.18443301]
[1718903015854,0.014,64900.0,64898.0,0.16443301]
[1718903016046,0.014,64900.0,64897.0,0.18443301]
[1718903016460,0.014,64899.0,64897.0,0.18443301]
[1718903016741,0.014,64899.0,64897.0,0.16443301]
[1718903017173,0.014,64899.0,64898.0,0.001]
[1718903017347,0.01,64900.0,64897.0,0.16443301]
[1718903017773,0.004,64899.0,64897.0,0.16443301]
[1718903017964,0.51332611,64905.0,64897.0,0.16443301]
[1718903018127,0.003,64899.0,64897.0,0.18443301]
[1718903018331,0.007,64899.0,64897.0,0.18443301]
[1718903018696,0.007,64899.0,64895.0,0.09297552]
[1718903018697,0.007,64899.0,64898.0,0.18443301]
[1718903019422,0.007,64899.0,64898.0,0.27740853]
[1718903019650,0.003,64899.0,64898.0,0.52390853]
[1718903021283,0.24529112,64913.0,64903.0,0.18443301]
[1718903021897,0.24529112,64913.0,64901.0,0.09297552]
[1718903022275,0.25829112,64913.0,64901.0,0.27740853]
[1718903022933,0.2924136,64913.0,64901.0,0.27740853]
[1718903023137,0.2924136,64913.0,64898.0,0.3505]
[1718903023343,0.27583,64905.0,64898.0,0.104]
[1718903023547,0.15256112,64904.0,64898.0,0.104]
[1718903023961,0.15256112,64904.0,64898.0,0.1]
[1718903024162,0.04283911,64903.0,64898.0,0.1]
[1718903024336,0.19540023,64903.0,64898.0,0.1]
[1718903024772,0.19540023,64903.0,64898.0,0.101]
[1718903025177,0.1831,64900.0,64898.0,0.1]
[1718903025423,0.0878,64899.0,64898.0,0.1]
[1718903026445,0.26486112,64900.0,64898.0,0.1]
[1718903026604,0.26486112,64900.0,64898.0,0.101]
[1718903026801,0.32360605,64900.0,64898.0,0.101]
[1718903027231,0.33360605,64900.0,64898.0,0.101]
[1718903027468,0.33360605,64900.0,64898.0,0.1]
[1718903027851,0.01,64899.0,64898.0,0.101]
[1718903028058,0.06949361,64899.0,64898.0,0.1]
[1718903028541,0.06949361,64899.0,64898.0,0.101]
[1718903028542,0.01,64899.0,64898.0,0.101]
[1718903029172,0.01,64899.0,64898.0,0.62950853]
[1718903029785,0.01,64900.0,64899.0,0.18443301]
[1718903029997,0.01,64900.0,64899.0,0.27740853]
[1718903030206,0.4788,64908.0,64901.0,0.18443301]
[1718903030418,0.4788,64908.0,64904.0,0.18443301]
[1718903030629,0.4788,64908.0,64907.0,0.16443301]
[1718903030823,0.4788,64908.0,64907.0,0.18443301]
[1718903031162,0.4788,64908.0,64907.0,0.52200853]
[1718903031363,0.061745,64915.0,64911.0,0.27740853]
[1718903031568,0.09588497,64915.0,64911.0,0.27740853]
[1718903032660,0.09588497,64915.0,64912.0,0.16443301]
[1718903032875,0.09588497,64915.0,64914.0,0.18443301]
[1718903033209,0.09588497,64915.0,64913.0,0.18443301]
[1718903033437,0.09588497,64915.0,64913.0,0.16443301]
[1718903033623,0.09588497,64915.0,64914.0,0.18443301]
[1718903033624,0.10988497,64915.0,64914.0,0.18443301]
[1718903033823,0.12388497,64915.0,64914.0,0.18443301]
[1718903034047,0.12388497,64915.0,64914.0,0.28973301]
[1718903034255,0.028,64915.0,64914.0,0.51850853]
[1718903034612,0.042,64915.0,64914.0,0.51850853]
[1718903035105,0.028,64915.0,64914.0,0.51850853]
[1718903035654,0.042,64915.0,64914.0,0.51850853]
[1718903036047,0.042,64915.0,64914.0,0.18543301]
[1718903036247,0.042,64915.0,64904.0,0.01]
[1718903036248,0.014,64915.0,64908.0,0.2363]
[1718903036677,0.015,64915.0,64910.0,0.16443301]
[1718903037042,0.00086,64916.0,64910.0,0.16443301]
[1718903037224,0.001,64915.0,64914.0,0.002]
[1718903037445,0.004,64915.0,64914.0,0.002]
[1718903038300,0.02123607,64929.0,64917.0,0.18443301]
[1718903038486,0.02123607,64929.0,64919.0,0.1313]
[1718903038487,0.15256112,64928.0,64919.0,0.1313]
[1718903038700,0.15256112,64928.0,64920.0,0.112]
[1718903038916,0.15256112,64928.0,64919.0,0.1313]
[1718903039132,0.15256112,64928.0,64916.0,0.1056]
[1718903039358,0.15256112,64928.0,64915.0,0.09297552]
[1718903039359,0.033637,64920.0,64915.0,0.09297552]
[1718903039826,0.033637,64920.0,64915.0,0.19297552]
[1718903040034,0.033637,64920.0,64915.0,0.1]
[1718903040225,0.24496112,64919.0,64915.0,0.1]
[1718903040654,0.24496112,64919.0,64915.0,0.101]
[1718903041045,0.33769112,64919.0,64915.0,0.102]
[1718903041366,0.0212,64917.0,64915.0,0.102]
[1718903041558,0.0212,64917.0,64915.0,0.1]
[1718903042614,0.02092674,64917.0,64915.0,0.1]
[1718903043175,0.34469112,64919.0,64915.0,0.1]
[1718903043600,0.33769112,64919.0,64915.0,0.1]
[1718903044164,0.009,64917.0,64915.0,0.1]
[1718903044597,0.004,64917.0,64915.0,0.1]
[1718903044714,0.34469112,64919.0,64915.0,0.101]
[1718903044916,0.007,64919.0,64915.0,0.2744433]
[1718903045143,0.007,64919.0,64916.0,0.16443301]
[1718903045359,0.007,64919.0,64917.0,0.1099]
[1718903045534,0.007,64919.0,64915.0,0.101]
[1718903045535,0.23354438,64919.0,64915.0,0.101]
[1718903045739,0.24054438,64919.0,64915.0,0.101]
[1718903045939,0.0924,64918.0,64915.0,0.101]
[1718903046144,0.0924,64918.0,64915.0,0.1]
[1718903046339,0.005,64917.0,64915.0,0.1]
[1718903046950,0.005,64917.0,64915.0,0.101]
[1718903047418,0.014,64919.0,64915.0,0.1]
[1718903047621,0.014,64919.0,64918.0,0.2429]
[1718903048006,0.007,64919.0,64918.0,0.40733301]
[1718903049111,0.014,64919.0,64918.0,0.31863301]
[1718903049451,0.014,64919.0,64918.0,0.6658811]
[1718903049775,0.007,64919.0,64918.0,0.6658811]
[1718903049971,0.007,64919.0,64918.0,0.58959938]
[1718903050335,0.007,64919.0,64918.0,0.68946965]
[1718903050554,0.4788,64938.0,64937.0,0.18443301]
[1718903050691,0.00086,64939.0,64938.0,0.18443301]
[1718903050903,0.00086,64939.0,64938.0,0.41040853]
[1718903053167,0.00186,64939.0,64938.0,0.41340853]
[1718903053555,0.00186,64939.0,64938.0,0.41840853]
[1718903053887,0.00186,64939.0,64938.0,0.41340853]
[1718903054149,0.00286,64939.0,64938.0,0.42340853]
[1718903054471,0.00186,64939.0,64938.0,0.42040853]
[1718903054611,0.00286,64939.0,64938.0,0.43140853]
[1718903054815,0.00286,64939.0,64938.0,0.41140853]
[1718903055014,0.00286,64939.0,64938.0,0.43140853]
[1718903055651,0.00186,64939.0,64938.0,0.42040853]
[1718903055852,0.00286,64939.0,64938.0,0.154]
[1718903056051,0.00286,64939.0,64938.0,0.021]
[1718903056460,0.00286,64939.0,64938.0,0.011]
[1718903056461,0.00186,64939.0,64938.0,0.011]
[1718903056678,0.00286,64939.0,64938.0,0.021]
[1718903057050,0.00286,64939.0,64938.0,0.011]
[1718903057251,0.00386,64939.0,64938.0,0.011]
[1718903057535,0.00386,64939.0,64931.0,0.27740853]
[1718903057536,0.00286,64939.0,64931.0,0.27740853]
[1718903058149,0.00286,64939.0,64934.0,0.16443301]
[1718903058372,0.00286,64939.0,64935.0,0.18443301]
[1718903058846,0.00286,64939.0,64931.0,0.18443301]
[1718903059049,0.00286,64939.0,64931.0,0.16443301]
[1718903059404,0.00086,64939.0,64930.0,0.1316]
[1718903059608,0.00086,64939.0,64932.0,0.16443301]
[1718903059824,0.00186,64939.0,64934.0,0.16443301]
[1718903060165,0.00186,64939.0,64932.0,0.16443301]
[1718903060591,0.00086,64939.0,64932.0,0.16443301]
[1718903060986,0.00186,64939.0,64932.0,0.16443301]
[1718903061520,0.00186,64939.0,64928.0,0.1076]
[1718903061753,0.0895,64935.0,64927.0,0.16443301]
[1718903062328,0.0895,64935.0,64928.0,0.09297552]
[1718903062495,0.0895,64935.0,64928.0,0.25740853]
[1718903062743,0.0895,64935.0,64930.0,0.16443301]
[1718903062912,0.0895,64935.0,64928.0,0.27740853]
[1718903063374,0.24292112,64939.0,64932.0,0.16443301]
[1718903064576,0.28888212,64939.0,64933.0,0.16443301]
[1718903064750,0.00186,64939.0,64934.0,0.16443301]
[1718903065395,0.00186,64939.0,64935.0,0.21217386]
[1718903065611,0.00186,64939.0,64936.0,0.16443301]
[1718903065923,0.00186,64939.0,64935.0,0.09297552]
[1718903066101,0.02506,64939.0,64929.0,0.18443301]
[1718903066333,0.0895,64938.0,64928.0,0.18443301]
[1718903066535,0.0895,64938.0,64928.0,0.16443301]
[1718903066536,0.13546913,64938.0,64928.0,0.16443301]
[1718903066739,0.04853887,64937.0,64930.0,0.25740853]
[1718903067267,0.13546913,64938.0,64930.0,0.09297552]
[1718903067880,0.13546913,64938.0,64930.0,0.09497552]
[1718903068089,0.28803584,64938.0,64930.0,0.002]
[1718903068294,0.04597472,64937.0,64926.0,0.39630853]
[1718903068500,0.04597472,64937.0,64930.0,0.001]
[1718903069232,0.04597472,64936.0,64930.0,0.001]
[1718903069443,0.04597472,64936.0,64930.0,0.003]
[1718903069807,0.04597472,64936.0,64930.0,0.001]
[1718903070008,0.04597472,64936.0,64926.0,0.30333301]
[1718903070218,0.04597472,64935.0,64930.0,0.002]
[1718903070430,0.04597472,64935.0,64926.0,0.30333301]
[1718903070823,0.04597472,64935.0,64930.0,0.003]
[1718903071241,0.04597472,64934.0,64926.0,0.30333301]
[1718903071443,0.04597472,64934.0,64930.0,0.001]
[1718903071784,0.04597472,64933.0,64930.0,0.001]
[1718903071991,0.04597472,64932.0,64930.0,0.004]